bitfinex/quotes_ETHUSD_20230113
["timestamp","ask_amount","ask_price","bid_price","bid_amount"]
[1673630265706,3.56896457,1415.2,1415.1,14.14773529]
[1673630265867,0.52720825,1415.2,1415.1,24.87069801]
[1673630266073,3.17647723,1415.3,1415.1,17.75406801]
[1673630266279,3.17647723,1415.3,1415.1,24.82069801]
[1673630266553,1.05859089,1415.3,1415.2,7.06613]
[1673630266709,2.81164694,1415.3,1415.2,21.21286529]
[1673630267382,1.05859089,1415.3,1415.2,21.21286529]
[1673630267598,2.64647723,1415.3,1415.2,21.21286529]
[1673630267969,4.39950219,1415.3,1415.2,24.81919801]
[1673630268818,4.39950219,1415.3,1415.2,7.08060529]
[1673630268819,3.3409113,1415.3,1415.2,7.08060529]
[1673630269029,3.8709113,1415.3,1415.2,21.21286529]
[1673630269239,5.98809308,1415.3,1415.2,21.21286529]
[1673630269455,6.05409308,1415.3,1415.2,21.21286529]
[1673630269980,4.46620674,1415.3,1415.2,7.08060529]
[1673630270176,4.40020674,1415.3,1415.2,21.21286529]
[1673630270703,3.33897264,1415.3,1415.2,21.21286529]
[1673630271568,4.39619878,1415.3,1415.2,21.21286529]
[1673630271759,4.39619878,1415.3,1415.2,24.81919801]
[1673630271977,4.39619878,1415.3,1415.2,28.01275581]
[1673630272431,4.39619878,1415.3,1415.2,24.81919801]
[1673630273282,3.33897264,1415.3,1415.2,21.21286529]
[1673630273434,3.33897264,1415.3,1415.2,14.14673529]
[1673630273651,3.33897264,1415.3,1415.2,21.21286529]
[1673630274106,5.45615442,1415.3,1415.2,21.21286529]
[1673630274316,5.52215442,1415.3,1415.2,21.21286529]
[1673630274671,5.5222842,1415.3,1415.2,21.21286529]
[1673630276410,5.5222842,1415.3,1415.2,14.14673529]
[1673630276656,5.52253583,1415.3,1415.2,21.21286529]
[1673630276983,3.93620674,1415.3,1415.2,24.81919801]
[1673630277300,3.33926948,1415.3,1415.2,24.81919801]
[1673630277921,4.39699458,1415.3,1415.2,24.81919801]
[1673630278133,3.33926948,1415.3,1415.2,21.21286529]
[1673630278711,3.33926948,1415.3,1415.2,24.81919801]
[1673630278979,4.39697198,1415.3,1415.2,28.01273981]
[1673630279294,4.39697198,1415.3,1415.2,21.21286529]
[1673630280128,4.39722006,1415.3,1415.2,21.21286529]
[1673630280651,3.33926948,1415.3,1415.2,21.21286529]
[1673630280832,4.39720712,1415.3,1415.2,21.21286529]
[1673630281554,3.7034263,1415.3,1415.2,21.21286529]
[1673630281771,5.45645126,1415.3,1415.2,21.21286529]
[1673630282664,2.81109953,1415.3,1415.2,21.21286529]
[1673630283457,4.39734405,1415.3,1415.2,24.81919801]
[1673630283804,2.81109953,1415.3,1415.2,24.81919801]
[1673630284155,1.05807457,1415.3,1415.2,24.81919801]
[1673630284366,2.81092297,1415.3,1415.2,28.17893711]
[1673630284544,1.05807457,1415.3,1415.2,28.17893711]
[1673630284891,2.8109281,1415.3,1415.2,28.17893711]
[1673630285085,1.05807457,1415.3,1415.2,28.17893711]
[1673630285474,5.16822051,1415.4,1415.2,28.17893711]
[1673630285686,1.83230983,1415.4,1415.3,3.60633272]
[1673630285926,4.57728508,1415.4,1415.3,24.80322272]
[1673630286159,4.57728508,1415.4,1415.3,21.21136529]
[1673630286551,5.6363438,1415.4,1415.3,21.21136529]
[1673630286760,5.7023438,1415.4,1415.3,21.21136529]
[1673630286957,4.06609928,1415.4,1415.3,21.21136529]
[1673630287172,5.71569957,1415.4,1415.3,7.08010529]
[1673630287379,6.01169957,1415.4,1415.3,0.01447529]
[1673630287611,6.31159957,1415.4,1415.2,7.08040529]
[1673630287892,3.36874738,1415.4,1415.3,14.13126]
[1673630288147,3.36874738,1415.4,1415.3,7.08010529]
[1673630288148,5.05578637,1415.4,1415.3,7.08010529]
[1673630288307,5.12178637,1415.4,1415.3,7.08010529]
[1673630288520,7.62178637,1415.4,1415.3,7.08010529]
[1673630288938,5.12178637,1415.4,1415.3,7.08010529]
[1673630289358,5.12178637,1415.4,1415.3,0.01447529]
[1673630289568,5.12178637,1415.4,1415.2,21.21196529]
[1673630289782,5.45702315,1415.3,1415.2,14.14607529]
[1673630290018,5.52302315,1415.3,1415.2,14.14607529]
[1673630290233,3.93560137,1415.3,1415.2,14.14607529]
[1673630290441,3.86960137,1415.3,1415.2,21.21220529]
[1673630291055,6.51238344,1415.3,1415.2,21.21220529]
[1673630291317,6.57838344,1415.3,1415.2,21.21220529]
[1673630292142,3.93588989,1415.3,1415.2,21.21220529]
[1673630292352,3.86988989,1415.3,1415.2,21.21220529]
[1673630293494,5.45767476,1415.3,1415.2,21.21220529]
[1673630293709,3.93588989,1415.3,1415.2,21.21220529]
[1673630294041,3.86988989,1415.3,1415.2,21.21220529]
[1673630294560,2.81151262,1415.3,1415.2,27.65141454]
[1673630294751,3.34074943,1415.3,1415.2,27.65141454]
[1673630295603,3.34074943,1415.3,1415.2,24.81853801]
[1673630295818,5.45760033,1415.3,1415.2,21.21220529]
[1673630295975,6.05360033,1415.3,1415.2,21.21220529]
[1673630296185,5.52360033,1415.3,1415.2,21.21220529]
[1673630297041,5.52360033,1415.3,1415.2,24.81853801]
[1673630297042,4.46537664,1415.3,1415.2,24.81853801]
[1673630297275,3.34074943,1415.3,1415.2,21.21220529]
[1673630297820,3.34074943,1415.3,1415.2,24.81853801]
[1673630297977,2.81158794,1415.3,1415.2,28.01204781]
[1673630299664,4.39929838,1415.3,1415.2,28.01204781]
[1673630300018,2.81158794,1415.3,1415.2,28.01204781]
[1673630300209,4.39929838,1415.3,1415.2,24.81853801]
[1673630300408,2.81158794,1415.3,1415.2,24.81853801]
[1673630300867,2.8423247,1415.4,1415.2,27.21453801]
[1673630301082,2.8423247,1415.4,1415.3,5.01236808]
[1673630301083,0.13006531,1415.4,1415.3,5.01236808]
[1673630301412,0.13006531,1415.4,1415.3,26.00769801]
[1673630301615,0.13006531,1415.4,1415.3,30.3003184]
[1673630302537,0.13006531,1415.4,1415.3,30.51636767]
[1673630302731,0.13006531,1415.4,1415.3,30.3003184]
[1673630305778,0.13006531,1415.4,1415.3,26.00769801]
[1673630308938,0.13006531,1415.4,1415.3,24.81769801]
[1673630309149,0.13006531,1415.4,1415.3,0.01447529]
[1673630309150,2.56835883,1415.4,1415.3,0.01447529]
[1673630309331,5.6870692,1415.4,1415.2,7.08022529]
[1673630309543,4.22179911,1415.4,1415.2,7.08022529]
[1673630309754,2.77579911,1415.4,1415.2,21.21248529]
[1673630309978,1.05829352,1415.3,1415.2,21.21248529]
[1673630311075,1.05829352,1415.3,1415.2,24.81881801]
[1673630311437,2.589717,1415.3,1415.2,24.81881801]
[1673630312853,25.82808614,1415.5,1415.2,13.88007081]
[1673630312854,5.05867146,1415.5,1415.2,13.88007081]
[1673630313066,2.65949838,1415.5,1415.3,24.80322272]
[1673630313283,2.65949838,1415.5,1415.3,24.86769801]
[1673630313284,1.05739935,1415.5,1415.3,24.86769801]
[1673630313799,2.15427844,1415.5,1415.3,26.06269801]
[1673630314000,1.05739935,1415.5,1415.3,29.60864723]
[1673630314167,3.31846607,1415.6,1415.3,29.60864723]
[1673630314971,1.25046704,1415.6,1415.5,28.25856]
[1673630315121,2.34730511,1415.6,1415.5,31.92936801]
[1673630315326,2.34730511,1415.6,1415.5,35.24130481]
[1673630315572,1.25046704,1415.6,1415.5,35.24130481]
[1673630316122,0.19306769,1415.6,1415.5,35.24130481]
[1673630316847,0.19306769,1415.6,1415.5,36.43930481]
[1673630317011,0.19306769,1415.6,1415.5,29.37466481]
[1673630317807,0.19306769,1415.6,1415.5,28.17666481]
[1673630318431,0.19306769,1415.6,1415.5,14.19375529]
[1673630318647,0.19306769,1415.6,1415.5,21.25839529]
[1673630318809,0.19306769,1415.6,1415.5,14.19375529]
[1673630319601,0.19306769,1415.6,1415.5,28.36272801]
[1673630319816,1.25046704,1415.6,1415.5,14.23544801]
[1673630320117,1.25046704,1415.6,1415.5,7.17080801]
[1673630320330,1.25046704,1415.6,1415.5,10.62911529]
[1673630320554,2.23736111,1415.6,1415.5,17.69375529]
[1673630321262,1.17996176,1415.6,1415.5,3.56447529]
[1673630321517,1.17996176,1415.6,1415.5,3.5]
[1673630321518,1.70986176,1415.6,1415.5,3.5]
[1673630321647,1.70986176,1415.6,1415.5,17.62928]
[1673630321857,1.70986176,1415.6,1415.5,24.75839529]
[1673630322067,4.35151081,1415.6,1415.5,24.75839529]
[1673630323112,3.82161081,1415.6,1415.5,17.69375529]
[1673630323374,3.82161081,1415.6,1415.5,10.62911529]
[1673630323542,2.7649487,1415.6,1415.5,3.56447529]
[1673630323751,32.15019967,1415.7,1415.6,0.2350513]
[1673630324018,22.81938539,1415.7,1415.5,10.5639834]
[1673630324216,0.87864955,1415.6,1415.5,10.62845869]
[1673630324438,2.99205377,1415.6,1415.5,3.56381869]
[1673630324602,2.99205377,1415.6,1415.5,3.4993434]
[1673630325138,0.87864955,1415.6,1415.5,10.5639834]
[1673630325366,0.87864955,1415.6,1415.5,10.62845869]
[1673630325661,2.99205377,1415.6,1415.5,3.56381869]
[1673630325991,2.99205377,1415.6,1415.5,3.4993434]
[1673630326170,0.87864955,1415.6,1415.5,3.4993434]
[1673630326648,2.99205377,1415.6,1415.5,3.4993434]
[1673630327016,1.93535346,1415.6,1415.5,24.6932634]
[1673630327217,15.90373979,1415.7,1415.5,27.94000356]
[1673630327463,15.90373979,1415.7,1415.5,31.54633628]
[1673630327643,14.84703588,1415.7,1415.6,6.10633272]
[1673630327875,14.84703588,1415.7,1415.6,27.36322801]
[1673630327876,0.066,1415.7,1415.6,27.36322801]
[1673630328214,11.02176586,1415.8,1415.6,27.36322801]
[1673630328215,2.92746586,1415.8,1415.6,29.09347564]
[1673630328540,2.86146586,1415.8,1415.6,24.86322801]
[1673630328851,1.05670391,1415.8,1415.6,17.79908801]
[1673630329014,1.81941627,1415.8,1415.6,17.79908801]
[1673630329472,26.15504085,1415.9,1415.6,29.32806164]
[1673630329684,1.81935428,1415.8,1415.6,29.32806164]
[1673630329893,1.82135428,1415.8,1415.6,29.32606164]
[1673630330062,27.20974116,1415.9,1415.7,25.99525272]
[1673630330063,26.15504085,1415.9,1415.7,25.99525272]
[1673630330427,16.0998789,1415.9,1415.7,26.05972801]
[1673630330744,16.0998789,1415.9,1415.7,29.81859817]
[1673630331313,16.0998789,1415.9,1415.8,3.60633272]
[1673630331544,16.0998789,1415.9,1415.8,10.66947272]
[1673630331857,16.0998789,1415.9,1415.8,10.73394801]
[1673630332067,16.86265382,1415.9,1415.8,10.73394801]
[1673630332298,16.86265382,1415.9,1415.8,7.12761529]
[1673630332495,16.86265382,1415.9,1415.8,12.10294801]
[1673630332712,16.86263729,1415.9,1415.8,12.10294801]
[1673630332945,2.08160141,1415.9,1415.8,3.67080801]
[1673630333164,2.01560141,1415.9,1415.7,5.02134545]
[1673630333386,2.83707139,1415.9,1415.7,3.67080801]
[1673630333602,1.25284302,1415.9,1415.7,3.60633272]
[1673630333762,1.25284302,1415.9,1415.7,10.66980272]
[1673630333763,2.01557747,1415.9,1415.7,10.66980272]
[1673630334123,1.25284302,1415.9,1415.7,0.06447529]
[1673630334282,1.05670391,1415.8,1415.5,10.62829869]
[1673630334495,1.05670391,1415.8,1415.6,3.60633272]
[1673630334707,1.58650391,1415.8,1415.6,10.67046272]
[1673630335034,1.58650391,1415.8,1415.6,10.73493801]
[1673630335438,1.05670391,1415.8,1415.6,10.73493801]
[1673630335810,1.81952462,1415.8,1415.6,19.92893915]
[1673630335994,1.81952462,1415.8,1415.7,3.60633272]
[1673630336218,18.21390727,1415.9,1415.7,17.73361272]
[1673630336383,18.21390727,1415.9,1415.7,17.79808801]
[1673630337272,18.21390727,1415.9,1415.7,10.73444801]
[1673630337674,17.68410727,1415.9,1415.7,10.73444801]
[1673630337884,15.04317499,1415.9,1415.7,19.79093192]
[1673630338105,16.0998789,1415.9,1415.7,19.79093192]
[1673630338659,16.6296789,1415.9,1415.7,19.79093192]
[1673630338981,16.0998789,1415.9,1415.7,26.85457192]
[1673630339551,16.0998789,1415.9,1415.8,2.68545719]
[1673630339762,15.04317499,1415.9,1415.8,16.81173719]
[1673630339971,0.26213911,1415.9,1415.8,20.4825452]
[1673630340223,0.19613911,1415.9,1415.8,28.7406852]
[1673630340709,0.19613911,1415.9,1415.8,20.4825452]
[1673630341372,0.19613911,1415.9,1415.8,27.5456852]
[1673630341916,0.19613911,1415.9,1415.8,20.4825452]
[1673630342223,0.19613911,1415.9,1415.8,27.5456852]
[1673630342392,0.19613911,1415.9,1415.8,13.4194052]
[1673630342880,0.19613911,1415.9,1415.8,20.4825452]
[1673630343080,0.19613911,1415.9,1415.8,6.3562652]
[1673630343969,1.26444113,1416.0,1415.9,1.80386089]
[1673630344186,2.02671604,1416.0,1415.9,1.80386089]
[1673630344428,2.02671604,1416.0,1415.9,8.86650089]
[1673630344600,2.02671604,1416.0,1415.9,15.99361618]
[1673630344813,2.02671604,1416.0,1415.9,23.05625618]
[1673630345171,2.0266455,1416.0,1415.9,23.05625618]
[1673630345338,5.11087387,1416.0,1415.9,1.86833618]
[1673630345701,2.0926455,1416.0,1415.9,1.80386089]
[1673630345860,2.0266455,1416.0,1415.9,1.80386089]
[1673630346070,3.61087387,1416.0,1415.9,1.80386089]
[1673630346649,2.0266455,1416.0,1415.9,8.86650089]
[1673630346848,2.0266455,1416.0,1415.9,8.93097618]
[1673630347792,0.20773722,1416.0,1415.9,25.3619278]
[1673630348502,0.20773722,1416.0,1415.9,30.16626052]
[1673630348714,7.22e-06,1416.0,1415.9,30.16626052]
[1673630350116,7.22e-06,1416.0,1415.9,28.96826052]
[1673630350741,7.22e-06,1416.0,1415.9,23.10362052]
[1673630351118,7.22e-06,1416.0,1415.9,30.16626052]
[1673630351574,7.22e-06,1416.0,1415.9,23.10362052]
[1673630353373,7.22e-06,1416.0,1415.9,31.35626052]
[1673630353529,7.22e-06,1416.0,1415.9,34.35626052]
[1673630357420,7.22e-06,1416.0,1415.9,33.16626052]
[1673630358469,7.22e-06,1416.0,1415.9,34.36426052]
[1673630358724,1.04059192,1416.2,1416.1,28.24656]
[1673630358939,1.04059192,1416.2,1416.1,36.19002401]
[1673630359122,0.21638253,1416.3,1416.2,2.5]
[1673630359345,15.06341841,1416.6,1416.2,3.60633272]
[1673630359580,0.28238253,1416.6,1416.3,15.11478272]
[1673630359891,0.28238253,1416.6,1416.3,14.18557529]
[1673630359892,0.21638253,1416.6,1416.3,14.18557529]
[1673630360060,7.27554253,1416.6,1416.3,0.06447529]
[1673630360419,0.5295,1416.5,1416.3,7.06065]
[1673630360618,0.5295,1416.5,1416.3,0.06447529]
[1673630360780,0.5295,1416.5,1416.3,17.72751272]
[1673630360991,0.5295,1416.5,1416.3,10.73133801]
[1673630361196,15.06341841,1416.6,1416.4,3.60633272]
[1673630361461,15.06341841,1416.6,1416.5,17.72563272]
[1673630361674,0.28238253,1416.6,1416.5,26.04775801]
[1673630361833,0.21638253,1416.6,1416.5,26.04775801]
[1673630362919,0.21638253,1416.6,1416.5,27.23575801]
[1673630363164,0.21638253,1416.6,1416.5,29.59709881]
[1673630364078,7.72810752,1416.8,1416.5,29.59709881]
[1673630364267,0.066,1416.8,1416.7,21.17595]
[1673630364475,11.9802,1416.9,1416.7,24.84675801]
[1673630365160,0.5954,1416.9,1416.7,24.84675801]
[1673630365373,0.5294,1416.9,1416.7,24.84675801]
[1673630366614,0.5294,1416.9,1416.8,4.80433272]
[1673630366804,14.84703588,1417.0,1416.8,4.80433272]
[1673630366805,15.37633588,1417.0,1416.9,28.23064]
[1673630367013,15.37633588,1417.0,1416.9,28.29511529]
[1673630367258,0.5953,1417.0,1416.9,28.29511529]
[1673630367503,0.5293,1417.0,1416.9,28.29511529]
[1673630367627,11.58960041,1417.1,1416.9,35.21139281]
[1673630367628,12.11890041,1417.1,1416.9,35.21139281]
[1673630367846,12.11890041,1417.1,1416.9,31.90144801]
[1673630368098,12.11890041,1417.1,1416.9,21.23745529]
[1673630368314,1.65700041,1417.1,1416.9,21.23745529]
[1673630368636,1.59100041,1417.1,1416.9,21.23745529]
[1673630368792,0.5342965,1417.1,1416.9,21.23745529]
[1673630369327,18.71719846,1417.2,1416.9,26.96753354]
[1673630369328,15.90373979,1417.2,1416.9,26.96753354]
[1673630369736,17.13232535,1417.2,1416.9,26.96753354]
[1673630370535,15.90373979,1417.2,1416.9,26.96753354]
[1673630370733,14.84703588,1417.2,1416.9,28.15853354]
[1673630370888,14.84703588,1417.2,1417.1,21.16998]
[1673630371094,14.84703588,1417.2,1417.1,18.43288721]
[1673630372056,14.84703588,1417.2,1417.1,14.98255993]
[1673630372297,14.84703588,1417.2,1417.1,16.18055993]
[1673630372480,0.066,1417.2,1417.1,19.32900292]
[1673630372689,30.66901003,1417.4,1417.1,19.32900292]
[1673630372898,0.29901003,1417.4,1417.2,4.80433272]
[1673630373126,0.29901003,1417.4,1417.3,17.71765272]
[1673630373127,0.23301003,1417.4,1417.3,17.71765272]
[1673630373325,0.23301003,1417.4,1417.3,18.97312801]
[1673630373674,0.23301003,1417.4,1417.3,21.69581881]
[1673630374668,0.23301003,1417.4,1417.3,6.39349881]
[1673630374878,0.23301003,1417.4,1417.3,3.67080801]
[1673630375146,0.23301003,1417.4,1417.3,3.60633272]
[1673630375368,0.23301003,1417.4,1417.3,10.66199272]
[1673630375512,0.23301003,1417.4,1417.3,10.72646801]
[1673630375723,0.23301003,1417.4,1417.3,17.78212801]
[1673630375931,0.23301003,1417.4,1417.3,20.38574081]
[1673630376351,0.23301003,1417.4,1417.3,13.33008081]
[1673630376566,0.23301003,1417.4,1417.3,0.06447529]
[1673630376567,1.61301003,1417.4,1417.3,0.06447529]
[1673630376895,1.61301003,1417.4,1416.9,12.68106553]
[1673630376896,2.14221003,1417.4,1417.0,14.11424]
[1673630377103,2.14221003,1417.4,1417.0,17.78504801]
[1673630378188,16.92324591,1417.4,1417.1,3.60633272]
[1673630378366,16.98924591,1417.4,1417.2,14.11232]
[1673630378575,15.60924591,1417.4,1417.2,7.12063529]
[1673630379231,15.08004591,1417.4,1417.2,7.12063529]
[1673630380450,15.08004591,1417.4,1417.2,14.17679529]
[1673630380656,15.08004591,1417.4,1417.2,7.12063529]
[1673630381117,15.08004591,1417.4,1417.2,14.17679529]
[1673630381890,15.08004591,1417.4,1417.2,0.06447529]
[1673630382102,15.08004591,1417.4,1417.1,14.17700529]
[1673630382258,15.08004591,1417.4,1417.1,0.06447529]
[1673630382471,16.27804591,1417.4,1417.1,7.05663]
[1673630382816,16.27804591,1417.4,1417.1,7.12110529]
[1673630383867,2.5,1417.3,1417.1,7.12110529]
[1673630384059,2.5,1417.3,1417.1,0.06447529]
[1673630384256,2.5,1417.3,1417.0,7.12137529]
[1673630384461,1.198,1417.2,1417.0,0.06447529]
[1673630384694,1.7273,1417.2,1416.9,3.56447529]
[1673630384887,2.5,1417.1,1416.9,3.5]
[1673630385130,10.75473,1417.1,1416.9,3.5]
[1673630385318,0.5293,1417.0,1416.9,3.5]
[1673630385675,8.77746,1417.0,1416.9,3.5]
[1673630385913,2.0163,1417.0,1416.9,3.5]
[1673630386253,1.9503,1417.0,1416.9,3.5]
[1673630387137,1.7273,1417.0,1416.9,3.5]
[1673630388518,30.34265663,1417.0,1416.9,0.71639812]
[1673630388674,47.31000468,1417.0,1416.9,0.71639812]
[1673630388885,47.31000468,1417.0,1416.3,7.18479529]
[1673630388886,2.5,1416.9,1416.3,7.18479529]
[1673630389251,0.25,1416.8,1416.4,14.11998]
[1673630389575,14.78103588,1416.7,1416.4,14.18445529]
[1673630389716,14.78103588,1416.7,1416.4,17.79078801]
[1673630389717,15.37653588,1416.7,1416.4,17.79078801]
[1673630389927,14.84703588,1416.7,1416.4,17.79078801]
[1673630390188,14.84703588,1416.7,1416.4,20.39519681]
[1673630390765,14.84703588,1416.7,1416.5,2.5]
[1673630390982,14.84703588,1416.7,1416.6,14.1183]
[1673630391297,14.84703588,1416.7,1416.6,7.12162529]
[1673630391514,14.84703588,1416.7,1416.6,0.06447529]
[1673630391779,14.84703588,1416.7,1416.5,21.24273529]
[1673630392084,14.84703588,1416.7,1416.5,7.12389529]
[1673630392393,14.84703588,1416.7,1416.5,0.06247529]
[1673630392554,14.84703588,1416.7,1416.4,9.77521681]
[1673630392764,14.84703588,1416.7,1416.4,16.83517681]
[1673630393211,14.84703588,1416.7,1416.4,20.39532681]
[1673630394187,14.84703588,1416.7,1416.5,2.03953268]
[1673630394398,14.84703588,1416.7,1416.5,16.15835268]
[1673630394568,14.84703588,1416.7,1416.5,16.22282797]
[1673630395021,14.84703588,1416.7,1416.5,21.02716069]
[1673630395390,0.066,1416.7,1416.5,21.02716069]
[1673630395599,25.46133588,1416.9,1416.6,6.90204879]
[1673630395869,25.46133588,1416.9,1416.7,27.28228272]
[1673630396021,0.066,1416.9,1416.7,28.53675801]
[1673630396233,0.066,1417.0,1416.7,28.53675801]
[1673630396584,14.78103588,1417.1,1416.9,14.11532]
[1673630396768,14.84703588,1417.1,1416.9,7.05755]
[1673630396977,14.84703588,1417.1,1416.9,7.06955]
[1673630397205,15.37633588,1417.1,1416.9,0.012]
[1673630397420,15.37633588,1417.1,1416.8,7.07629529]
[1673630397421,15.90373979,1417.1,1416.8,7.07014]
[1673630398017,15.90373979,1417.1,1416.8,14.12829]
[1673630398469,16.77635561,1417.1,1416.8,14.12829]
[1673630398914,18.36058398,1417.1,1416.8,14.12829]
[1673630399089,18.36058398,1417.1,1416.8,0.012]
[1673630399090,1.05670391,1417.0,1416.8,0.012]
[1673630399277,1.34930066,1417.0,1416.7,14.12849]
[1673630399486,1.87860066,1417.0,1416.7,14.12849]
[1673630399835,4.08600391,1417.0,1416.7,7.07019]
[1673630400041,1.198,1416.8,1416.7,0.012]
[1673630400221,1.198,1416.8,1416.6,0.012]
[1673630400439,1.4998,1416.7,1416.5,0.012]
[1673630400795,1.4998,1416.7,1416.4,7.07185]
[1673630400986,1.4998,1416.7,1416.4,10.67818272]
[1673630401162,1.4998,1416.7,1416.4,7.07185]
[1673630401376,2.64998,1416.6,1416.4,0.012]
[1673630401619,0.14998,1416.6,1416.4,7.0601]
[1673630401854,0.14998,1416.6,1416.4,0.012]
[1673630402023,0.14998,1416.6,1416.3,14.13274]
[1673630402236,0.94778,1416.7,1416.3,14.13274]
[1673630402446,3.44778,1416.7,1416.3,14.13274]
[1673630402658,3.44778,1416.7,1416.3,7.07235]
[1673630402848,4.50448391,1416.7,1416.3,7.07235]
[1673630403196,4.50448391,1416.7,1416.3,14.133]
[1673630403791,1.198,1416.6,1416.3,0.012]
[1673630404000,13.2972,1416.6,1416.2,14.13364]
[1673630404270,14.78103588,1416.5,1416.2,14.13364]
[1673630404417,14.84703588,1416.5,1416.2,7.0728]
[1673630404898,14.84703588,1416.5,1416.2,0.012]
[1673630405100,14.84703588,1416.5,1416.2,21.1834]
[1673630405260,14.84703588,1416.5,1416.2,21.1954]
[1673630406153,14.84703588,1416.5,1416.2,27.63506312]
[1673630407371,14.84703588,1416.5,1416.2,24.80173272]
[1673630408754,14.84703588,1416.5,1416.2,14.13426]
[1673630408973,14.84703588,1416.5,1416.2,7.07314]
[1673630409781,21.90670588,1416.5,1416.2,7.07314]
[1673630410050,21.90669588,1416.5,1416.2,7.07314]
[1673630410198,21.90668588,1416.5,1416.2,7.07308]
[1673630410412,14.84703588,1416.5,1416.2,14.13422]
[1673630410864,14.84703588,1416.5,1416.2,7.07308]
[1673630411096,14.84703588,1416.5,1416.2,16.03422]
[1673630412299,14.84703588,1416.5,1416.2,23.09536]
[1673630412547,14.84703588,1416.5,1416.2,26.1186724]
[1673630413084,14.84703588,1416.5,1416.2,24.2186724]
[1673630414415,14.84703588,1416.5,1416.2,14.13422]
[1673630414985,14.84703588,1416.5,1416.2,21.19536]
[1673630415172,14.84703588,1416.5,1416.3,3.60633272]
[1673630415347,14.84703588,1416.5,1416.4,14.1203]
[1673630415560,14.84703588,1416.5,1416.4,7.07215]
[1673630415782,14.84703588,1416.5,1416.4,23.67776927]
[1673630416239,0.066,1416.5,1416.4,23.67776927]
[1673630416405,11.4057,1416.6,1416.4,27.28410199]
[1673630417451,0.066,1416.6,1416.4,27.28410199]
[1673630417662,14.84703588,1416.7,1416.4,27.28410199]
[1673630417993,14.84703588,1416.7,1416.6,21.17745]
[1673630418209,14.84703588,1416.7,1416.6,14.1303]
[1673630418434,14.84703588,1416.7,1416.6,7.07115]
[1673630418605,14.84703588,1416.7,1416.6,0.012]
[1673630418823,14.84703588,1416.7,1416.5,10.67755272]
[1673630419679,14.84703588,1416.7,1416.5,17.73720272]
[1673630419868,14.84703588,1416.7,1416.5,20.47083392]
[1673630421029,14.84703588,1416.7,1416.5,28.72848392]
[1673630421283,0.066,1416.7,1416.5,28.72848392]
[1673630421595,0.066,1416.8,1416.7,21.17595]
[1673630421809,15.31043588,1416.9,1416.7,27.52251099]
[1673630421810,15.37643588,1416.9,1416.7,27.52251099]
[1673630422500,16.43313979,1416.9,1416.7,27.52251099]
[1673630422712,14.84703588,1416.9,1416.7,27.52251099]
[1673630423356,15.90373979,1416.9,1416.7,27.52251099]
[1673630423557,15.90373979,1416.9,1416.7,10.67698272]
[1673630423969,15.90373979,1416.9,1416.7,0.012]
[1673630424184,15.90373979,1416.9,1416.6,15.32782]
[1673630424389,17.48796816,1416.9,1416.7,7.05864]
[1673630424651,17.48796816,1416.9,1416.7,7.07064]
[1673630425679,17.48796816,1416.9,1416.7,27.39895199]
[1673630425680,15.90373979,1416.9,1416.7,27.39895199]
[1673630425887,15.90373979,1416.9,1416.7,27.39695199]
[1673630426136,14.84703588,1416.9,1416.7,27.39895199]
[1673630426971,0.066,1416.9,1416.7,27.39895199]
[1673630427203,12.83126706,1417.0,1416.7,27.39895199]
[1673630427417,12.83161002,1417.0,1416.8,2.7398952]
[1673630427576,1.12270391,1417.0,1416.9,7.05766]
[1673630427778,1.34935374,1417.0,1416.9,21.18498]
[1673630428908,2.93358211,1417.0,1416.9,21.18498]
[1673630429050,2.22308249,1417.0,1416.9,21.18498]
[1673630430129,1.34935374,1417.0,1416.9,21.18498]
[1673630430533,1.05670391,1417.0,1416.9,21.18498]
[1673630431054,37.83406896,1417.1,1416.9,21.18498]
[1673630431055,38.01726816,1417.1,1416.9,21.18498]
[1673630432229,16.43303979,1417.1,1416.9,21.1821181]
[1673630432566,16.43303979,1417.1,1416.9,14.1244581]
[1673630432725,16.43303979,1417.1,1416.9,21.1821181]
[1673630433144,16.43303979,1417.1,1416.9,14.1244581]
[1673630433470,14.84703588,1417.1,1416.9,14.1244581]
[1673630433687,14.84703588,1417.1,1416.9,23.42483291]
[1673630434036,14.84703588,1417.1,1416.9,27.03116563]
[1673630434460,14.84703588,1417.1,1416.9,17.73079082]
[1673630434821,15.90373979,1417.1,1416.9,24.78845082]
[1673630435063,15.90373979,1417.1,1416.9,0.012]
[1673630435276,15.90373979,1417.1,1416.8,14.11574]
[1673630435465,16.77664807,1417.1,1416.8,17.73407272]
[1673630435921,18.36087644,1417.1,1416.8,24.79222272]
[1673630436149,15.90373979,1417.1,1416.8,24.79222272]
[1673630436451,14.84703588,1417.1,1416.8,24.79222272]
[1673630436663,14.84703588,1417.1,1416.9,3.60633272]
[1673630436874,14.84703588,1417.1,1417.0,21.17148]
[1673630437199,14.84703588,1417.1,1417.0,21.18348]
[1673630437787,14.84703588,1417.1,1417.0,28.29468449]
[1673630438308,0.066,1417.1,1417.0,28.29468449]
[1673630438528,0.23301003,1417.4,1417.1,2.5]
[1673630438529,15.01404591,1417.4,1417.1,2.5]
[1673630438884,15.08004591,1417.4,1417.2,25.96481272]
[1673630439040,15.08004591,1417.4,1417.2,25.97681272]
[1673630439254,15.08004591,1417.4,1417.2,29.53552499]
[1673630440263,15.08004591,1417.4,1417.3,6.10633272]
[1673630440450,15.08004591,1417.4,1417.3,24.78531272]
[1673630440786,0.29901003,1417.4,1417.3,24.78531272]
[1673630440936,0.23301003,1417.4,1417.3,24.78531272]
[1673630441152,0.23301003,1417.4,1417.3,28.44973122]
[1673630441358,0.23301003,1417.4,1417.3,3.61833272]
[1673630441611,14.34335003,1417.4,1417.2,0.066]
[1673630441797,14.34335003,1417.4,1417.1,7.06855]
[1673630441798,0.29901003,1417.4,1417.1,7.06855]
[1673630442012,0.29901003,1417.4,1417.2,7.05603]
[1673630442013,0.23301003,1417.4,1417.2,7.05603]
[1673630442245,0.23301003,1417.4,1417.2,7.06803]
[1673630442536,0.23301003,1417.4,1417.2,21.18035]
[1673630442722,0.23301003,1417.4,1417.2,14.12419]
[1673630442954,0.23301003,1417.4,1417.2,21.18035]
[1673630443387,0.23301003,1417.4,1417.2,7.06803]
[1673630443575,0.23301003,1417.4,1417.2,10.56803]
[1673630445072,0.23301003,1417.4,1417.2,3.512]
[1673630445286,0.23301003,1417.4,1417.2,3.5]
[1673630445517,15.92955394,1417.4,1417.2,3.5]
[1673630445672,1.19,1417.3,1417.2,3.5]
[1673630446030,22.35698,1417.3,1417.2,3.5]
[1673630446238,15.36732,1417.3,1417.2,3.5]
[1673630446402,8.31166,1417.3,1417.2,3.5]
[1673630446617,1.446,1417.3,1417.2,3.5]
[1673630446855,16.16103588,1417.3,1417.2,3.5]
[1673630447066,16.22703588,1417.3,1417.2,3.5]
[1673630447395,14.84703588,1417.3,1417.2,17.61232]